fUSD/lending_fUSD_20240220
["ID","MTS","AMOUNT","RATE_DAILY","PERIOD"]
[314598142,1708441834980,-454.65193759,0.00046575,30]
[314598143,1708441834991,-500.0,0.00046575,30]
[314598144,1708441835000,-205.96772206,0.00046575,30]
[314598145,1708441835009,-500.0,0.00046575,30]
[314598146,1708441835018,-500.0,0.00046575,30]
[314598147,1708441835028,-503.48986001,0.00046575,30]
[314598148,1708441835037,-500.0,0.00046575,30]
[314598149,1708441835047,-176.72431962,0.00046575,30]
[314598150,1708441835058,-500.0,0.00046575,30]
[314598151,1708441835069,-500.0,0.00046575,30]
[314598152,1708441835079,-308.59535877,0.00046575,30]
[314598153,1708441835090,-500.0,0.00046575,30]
[314598154,1708441835100,-500.0,0.00046575,30]
[314598155,1708441835109,-500.0,0.00046575,30]
[314598156,1708441835119,-500.0,0.00046575,30]
[314598157,1708441835128,-500.0,0.00046575,30]
[314598158,1708441835138,-500.0,0.00046575,30]
[314598159,1708441835148,-540.99237337,0.00046575,30]
[314598160,1708441835158,-500.0,0.00046575,30]
[314598161,1708441835168,-500.0,0.00046575,30]
[314598162,1708441835178,-500.0,0.00046575,30]
[314598163,1708441835187,-500.0,0.00046575,30]
[314598164,1708441835196,-500.0,0.00046575,30]
[314598165,1708441835206,-391.01375888,0.00046575,30]
[314598166,1708441835215,-308.8023185,0.00046575,30]
[314598167,1708441835224,-500.0,0.00046575,30]
[314598168,1708441835233,-500.0,0.00046575,30]
[314598169,1708441835248,-500.0,0.00046575,30]
[314598170,1708441835259,-172.59645275,0.00046575,7]
[314598171,1708441835278,-605.82620087,0.00046575,7]
[314598172,1708441835290,-221.57734638,0.00046575,7]
[314598173,1708441835300,-500.0,0.00046575,30]
[314598174,1708441835310,-500.0,0.00046575,30]
[314598175,1708441835320,-500.0,0.00046575,30]
[314598176,1708441835330,-500.0,0.00046575,30]
[314598177,1708441835340,-500.0,0.00046575,30]
[314598178,1708441835349,-500.0,0.00046575,30]
[314598179,1708441835359,-500.0,0.00046575,30]
[314598180,1708441835368,-500.0,0.00046575,30]
[314598181,1708441835377,-500.0,0.00046575,30]
[314598182,1708441835387,-500.0,0.00046575,30]
[314598183,1708441835397,-500.0,0.00046575,30]
[314598184,1708441835406,-525.37995574,0.00046575,30]
[314598185,1708441835415,-500.0,0.00046575,30]
[314598186,1708441835424,-500.0,0.00046575,30]
[314598187,1708441835434,-500.0,0.00046575,30]
[314598188,1708441835445,-500.0,0.00046575,30]
[314598189,1708441835454,-339.23976603,0.00046575,30]
[314598190,1708441835464,-500.0,0.00046575,30]
[314598191,1708441835474,-500.0,0.00046575,30]
[314598192,1708441835484,-500.0,0.00046575,30]
[314598193,1708441835497,-437.61687187,0.00046575,30]
[314598199,1708441837805,-230.0,0.00046475,120]
[314598200,1708441837815,-62.38312813,0.00046575,30]
[314598201,1708441837825,-500.0,0.00046575,30]
[314598202,1708441837834,-500.0,0.00046575,30]
[314598203,1708441837844,-153.15967882,0.00046575,30]
[314598204,1708441837856,-346.84032118,0.00046575,30]
[314598205,1708441837865,-500.0,0.00046575,30]
[314598206,1708441837875,-500.0,0.00046575,30]
[314598207,1708441837885,-500.0,0.00046575,30]
[314598208,1708441837894,-500.0,0.00046575,30]
[314598209,1708441837904,-522.38,0.00046575,30]
[314598210,1708441837914,-500.0,0.00046575,30]
[314598211,1708441837923,-521.77551942,0.00046575,30]
[314598212,1708441837933,-500.0,0.00046575,30]
[314598213,1708441837943,-500.0,0.00046575,30]
[314598214,1708441837953,-500.0,0.00046575,30]
[314598215,1708441837962,-500.0,0.00046575,30]
[314598216,1708441837972,-500.0,0.00046575,30]
[314598217,1708441837981,-500.0,0.00046575,30]
[314598218,1708441837993,-500.0,0.00046575,30]
[314598219,1708441838004,-259.32527381,0.00046575,30]
[314598220,1708441838014,-500.0,0.00046575,30]
[314598221,1708441838024,-500.0,0.00046575,30]
[314598222,1708441838033,-500.0,0.00046575,30]
[314598223,1708441838042,-1294.12,0.00046575,30]
[314598224,1708441838051,-500.0,0.00046575,30]
[314598225,1708441838061,-500.0,0.00046575,30]
[314598226,1708441838070,-500.0,0.00046575,30]
[314598227,1708441838079,-500.0,0.00046575,30]
[314598228,1708441838088,-147.20888559,0.00046575,30]
[314598234,1708441840455,-267.827,0.00046117,120]
[314598235,1708441840468,-180.75353389,0.00046117,120]
[314598236,1708441840477,-139.75928604,0.00046575,30]
[314598237,1708441841256,-273.75,0.00046565,10]
[314598238,1708441841266,-150.0,0.00046573,2]
[314598239,1708441841277,-213.03182837,0.00046575,30]
[314598240,1708441841286,-500.0,0.00046575,30]
[314598241,1708441841296,-500.0,0.00046575,30]
[314598242,1708441841306,-500.0,0.00046575,30]
[314598243,1708441841316,-472.72868482,0.00046575,30]
[314598244,1708441841326,-500.0,0.00046575,2]
[314598245,1708441841335,-552.28353946,0.00046575,30]
[314598246,1708441841345,-500.0,0.00046575,30]
[314598247,1708441841354,-500.0,0.00046575,30]
[314598248,1708441841364,-500.0,0.00046575,30]
[314598249,1708441841373,-500.0,0.00046575,30]
[314598251,1708441841383,-203.29034197,0.00046575,30]
[314598252,1708441841393,-501.61823488,0.00046575,30]
[314598253,1708441841402,-5000.0,0.00046575,30]
[314598254,1708441841412,-195.24866232,0.00046575,30]
[314598255,1708441841421,-150.0,0.00046575,30]
[314598256,1708441841431,-500.0,0.00046575,30]
[314598257,1708441841439,-500.0,0.00046575,30]
[314598258,1708441841448,-500.0,0.00046575,30]
[314598260,1708441841458,-500.0,0.00046575,30]
[314598262,1708441841467,-500.0,0.00046575,30]
[314598264,1708441841477,-500.0,0.00046575,30]
[314598266,1708441841486,-500.0,0.00046575,30]
[314598268,1708441841499,-500.0,0.00046575,30]
[314598270,1708441841508,-500.0,0.00046575,30]
[314598272,1708441841519,-249.61685406,0.00046575,30]
[314598274,1708441841529,-500.0,0.00046575,30]
[314598276,1708441841538,-500.0,0.00046575,30]
[314598278,1708441841548,-500.0,0.00046575,30]
[314598280,1708441841558,-500.0,0.00046575,30]
[314598282,1708441841568,-554.58171665,0.00046575,30]
[314598284,1708441841578,-207.10980001,0.00046575,30]
[314598285,1708441841587,-500.0,0.00046575,30]
[314598286,1708441841598,-227.33699963,0.00046575,30]
[314598287,1708441841609,-500.0,0.00046575,30]
[314598288,1708441841619,-500.0,0.00046575,30]
[314598289,1708441841629,-500.0,0.00046575,30]
[314598290,1708441841639,-533.9,0.00046575,30]
[314598291,1708441841649,-500.0,0.00046575,30]
[314598292,1708441841659,-500.0,0.00046575,30]
[314598293,1708441841669,-500.0,0.00046575,30]
[314598294,1708441841679,-500.0,0.00046575,30]
[314598295,1708441841688,-500.0,0.00046575,30]
[314598296,1708441841698,-500.0,0.00046575,30]
[314598297,1708441841712,-500.0,0.00046575,30]
[314598298,1708441841722,-500.0,0.00046575,30]
[314598299,1708441841731,-500.0,0.00046575,30]
[314598300,1708441841741,-500.0,0.00046575,30]
[314598301,1708441841758,-500.0,0.00046575,30]
[314598302,1708441841767,-500.0,0.00046575,30]
[314598303,1708441841777,-394.56442261,0.00046575,30]
[314598304,1708441841786,-500.0,0.00046575,30]
[314598305,1708441841796,-500.0,0.00046575,30]
[314598306,1708441841806,-500.0,0.00046575,30]
[314598307,1708441841817,-500.0,0.00046575,30]
[314598308,1708441841828,-500.0,0.00046575,30]
[314598309,1708441841838,-500.0,0.00046575,30]
[314598310,1708441841847,-500.0,0.00046575,30]
[314598311,1708441841857,-500.0,0.00046575,30]
[314598312,1708441841868,-500.0,0.00046575,30]
[314598313,1708441841878,-500.0,0.00046575,30]
[314598314,1708441841889,-500.0,0.00046575,30]
[314598315,1708441841899,-500.0,0.00046575,30]
[314598316,1708441841910,-500.0,0.00046575,30]
[314598317,1708441841920,-500.0,0.00046575,30]
[314598318,1708441841930,-500.0,0.00046575,30]
[314598319,1708441841940,-500.0,0.00046575,30]
[314598320,1708441841950,-500.0,0.00046575,30]
[314598321,1708441841961,-500.0,0.00046575,30]
[314598322,1708441841971,-500.0,0.00046575,30]
[314598323,1708441841980,-500.0,0.00046575,30]
[314598324,1708441841990,-500.0,0.00046575,30]
[314598325,1708441842003,-500.0,0.00046575,30]
[314598326,1708441842013,-613.82520127,0.00046575,30]
[314598327,1708441842025,-500.0,0.00046575,30]
[314598328,1708441842034,-500.0,0.00046575,30]
[314598329,1708441842044,-500.0,0.00046575,30]
[314598330,1708441842055,-500.0,0.00046575,30]
[314598331,1708441842065,-500.0,0.00046575,30]
[314598332,1708441842076,-500.0,0.00046575,30]
[314598333,1708441842086,-500.0,0.00046575,30]
[314598334,1708441842096,-500.0,0.00046575,30]
[314598335,1708441842106,-500.0,0.00046575,30]
[314598336,1708441842117,-189.11707504,0.00046575,30]
[314598337,1708441842126,-500.0,0.00046575,30]
[314598338,1708441842137,-506.81590244,0.00046575,30]
[314598339,1708441842147,-500.0,0.00046575,30]
[314598340,1708441842158,-500.0,0.00046575,30]
[314598341,1708441842169,-500.0,0.00046575,30]
[314598342,1708441842179,-500.0,0.00046575,30]
[314598343,1708441842190,-500.0,0.00046575,30]
[314598344,1708441842200,-500.0,0.00046575,30]
[314598345,1708441842210,-500.0,0.00046575,30]
[314598346,1708441842220,-1000.0,0.00046575,30]
[314598347,1708441842230,-559.16385018,0.00046575,30]
[314598348,1708441842240,-500.0,0.00046575,30]
[314598349,1708441842251,-500.0,0.00046575,30]
[314598350,1708441842261,-500.0,0.00046575,30]
[314598351,1708441842272,-500.0,0.00046575,30]
[314598352,1708441842280,-500.0,0.00046575,30]
[314598353,1708441842291,-500.0,0.00046575,30]
[314598354,1708441842301,-500.0,0.00046575,30]
[314598355,1708441842311,-500.0,0.00046575,30]
[314598356,1708441842321,-500.0,0.00046575,30]
[314598357,1708441842331,-500.0,0.00046575,30]
[314598358,1708441842341,-500.0,0.00046575,30]
[314598359,1708441842351,-500.0,0.00046575,30]
[314598360,1708441842360,-500.0,0.00046575,30]
[314598361,1708441842370,-500.0,0.00046575,30]
[314598362,1708441842380,-500.0,0.00046575,30]
[314598363,1708441842390,-500.0,0.00046575,30]
[314598364,1708441842400,-500.0,0.00046575,30]
[314598365,1708441842410,-500.0,0.00046575,2]
[314598366,1708441842421,-500.0,0.00046575,30]
[314598367,1708441842432,-500.0,0.00046575,30]
[314598368,1708441842442,-521.10202953,0.00046575,30]
[314598369,1708441842451,-571.73830169,0.00046575,30]
[314598370,1708441842461,-500.0,0.00046575,30]
[314598371,1708441842471,-500.0,0.00046575,30]
[314598372,1708441842481,-500.0,0.00046575,30]
[314598373,1708441842490,-500.0,0.00046575,14]
[314598374,1708441842504,-512.59005959,0.00046575,30]
[314598375,1708441842514,-500.0,0.00046575,30]
[314598376,1708441842523,-210.64953305,0.00046575,30]
[314598377,1708441842532,-1656.08,0.00046575,30]
[314598378,1708441842541,-500.0,0.00046575,30]
[314598379,1708441842551,-500.0,0.00046575,30]
[314598380,1708441842560,-500.0,0.00046575,30]
[314598381,1708441842570,-500.0,0.00046575,30]
[314598382,1708441842580,-500.0,0.00046575,30]
[314598383,1708441842589,-500.0,0.00046575,30]
[314598384,1708441842600,-538.19,0.00046575,30]
[314598385,1708441842610,-500.0,0.00046575,30]
[314598386,1708441842619,-428.50428171,0.00046575,30]
[314598388,1708441842629,-500.0,0.00046575,30]
[314598389,1708441842639,-500.0,0.00046575,30]
[314598390,1708441842649,-500.0,0.00046575,30]
[314598391,1708441842658,-500.0,0.00046575,30]
[314598392,1708441842668,-500.0,0.00046575,30]
[314598394,1708441842677,-500.0,0.00046575,30]
[314598395,1708441842687,-500.0,0.00046575,30]
[314598396,1708441842697,-500.0,0.00046575,30]
[314598397,1708441842708,-500.0,0.00046575,30]
[314598398,1708441842718,-500.0,0.00046575,30]
[314598400,1708441842730,-500.0,0.00046575,30]
[314598401,1708441842740,-500.0,0.00046575,30]
[314598402,1708441842752,-500.0,0.00046575,30]
[314598403,1708441842762,-500.0,0.00046575,30]
[314598404,1708441842772,-500.0,0.00046575,30]
[314598405,1708441842782,-536.61838355,0.00046575,30]
[314598406,1708441842791,-500.0,0.00046575,30]
[314598407,1708441842801,-500.0,0.00046575,30]
[314598408,1708441842812,-500.0,0.00046575,30]
[314598409,1708441842822,-500.0,0.00046575,30]
[314598410,1708441842831,-500.0,0.00046575,30]
[314598411,1708441842841,-500.0,0.00046575,30]
[314598412,1708441842851,-574.02003823,0.00046575,30]
[314598413,1708441842861,-500.0,0.00046575,7]
[314598414,1708441842871,-500.0,0.00046575,30]
[314598415,1708441842881,-500.0,0.00046575,30]
[314598416,1708441842891,-500.0,0.00046575,30]
[314598417,1708441842901,-500.0,0.00046575,30]
[314598418,1708441842912,-579.06507442,0.00046575,30]
[314598419,1708441842922,-36.47812198,0.00046575,30]
[314598420,1708441842939,-335.97967947,0.00046575,30]
[314598421,1708441842949,-560.63155054,0.00046575,30]
[314598422,1708441842959,-183.97380389,0.00046575,30]
[314598423,1708441842976,-316.02619611,0.00046575,30]
[314598424,1708441842986,-500.0,0.00046575,30]
[314598425,1708441842998,-68.88562329,0.00046575,30]
[314598426,1708441843010,-534.85318982,0.00046575,30]
[314598427,1708441843019,-500.0,0.00046575,30]
[314598428,1708441843028,-67.30426268,0.00046575,30]
[314598429,1708441843040,-432.69573732,0.00046575,30]
[314598430,1708441843050,-500.0,0.00046575,30]
[314598431,1708441843060,-170.24476063,0.00046575,30]
[314598432,1708441843072,-329.75523937,0.00046575,30]
[314598433,1708441843082,-500.0,0.00046575,30]
[314598434,1708441843092,-500.0,0.00046575,30]
[314598435,1708441843102,-500.0,0.00046575,30]
[314598436,1708441843112,-500.0,0.00046575,30]
[314598437,1708441843122,-500.0,0.00046575,30]
[314598438,1708441843132,-500.0,0.00046575,30]
[314598439,1708441843142,-500.0,0.00046575,30]
[314598440,1708441843151,-500.0,0.00046575,30]
[314598441,1708441843161,-500.0,0.00046575,7]
[314598443,1708441843172,-513.25,0.00046575,30]
[314598445,1708441843182,-500.0,0.00046575,30]
[314598446,1708441843191,-500.0,0.00046575,30]
[314598448,1708441843201,-500.0,0.00046575,30]
[314598449,1708441843211,-500.0,0.00046575,30]
[314598450,1708441843221,-500.0,0.00046575,30]
[314598451,1708441843231,-836.9,0.00046575,30]
[314598452,1708441843241,-500.0,0.00046575,30]
[314598453,1708441843253,-500.0,0.00046575,30]
[314598454,1708441843264,-500.0,0.00046575,30]
[314598455,1708441843274,-500.0,0.00046575,30]
[314598456,1708441843284,-500.0,0.00046575,30]
[314598457,1708441843293,-500.0,0.00046575,30]
[314598458,1708441843303,-500.0,0.00046575,30]
[314598459,1708441843313,-500.0,0.00046575,30]
[314598460,1708441843324,-500.0,0.00046575,30]
[314598461,1708441843336,-500.0,0.00046575,30]
[314598462,1708441843347,-500.0,0.00046575,30]
[314598463,1708441843358,-563.55,0.00046575,30]
[314598464,1708441843367,-605.49,0.00046575,30]
[314598465,1708441843377,-303.14896813,0.00046575,30]
[314598466,1708441843720,-150.0,0.00046573,2]
[314598467,1708441843730,-196.85103187,0.00046575,30]
[314598468,1708441843741,-312.68258878,0.00046575,30]
[314598469,1708441843757,-187.31741122,0.00046575,30]
[314598470,1708441843766,-312.68258878,0.00046575,30]
[314598471,1708441843804,-266.99741122,0.00046575,30]
[314598472,1708441843815,-500.0,0.00046575,30]
[314598473,1708441843824,-357.34128351,0.00046575,30]
[314598474,1708441843836,-142.65871649,0.00046575,30]
[314598475,1708441843845,-256.96725891,0.00046575,30]
[314598476,1708441843861,-243.03274109,0.00046575,30]
[314598477,1708441843871,-500.0,0.00046575,30]
[314598478,1708441843881,-500.0,0.00046575,30]
[314598479,1708441843890,-500.0,0.00046575,30]
[314598480,1708441843900,-500.0,0.00046575,30]
[314598481,1708441843910,-500.0,0.00046575,30]
[314598482,1708441843920,-500.0,0.00046575,30]
[314598483,1708441843930,-621.48,0.00046575,30]
[314598484,1708441843939,-500.0,0.00046575,30]
[314598485,1708441843949,-500.0,0.00046575,30]
[314598486,1708441843959,-505.47287949,0.00046575,30]
[314598487,1708441843969,-500.0,0.00046575,30]
[314598488,1708441843979,-500.0,0.00046575,30]
[314598489,1708441843989,-283.37411664,0.00046575,30]
[314598490,1708441844017,-161.80728217,0.00046475,8]
[314598491,1708441844027,-216.62588336,0.00046575,30]
[314598492,1708441844037,-374.83683447,0.00046575,30]
[314598494,1708441845870,-355.63763412,0.00045644,10]
[314598495,1708441845882,-701.82495,0.00045644,10]
[314598496,1708441846045,-55.99868703,0.00045644,10]
[314598497,1708441846055,-321.09,0.00045917,15]
[314598498,1708441846065,-251.70874792,0.00046574,4]
[314598499,1708441846077,-132.93704602,0.00046574,4]
[314598500,1708441846087,-125.16316553,0.00046575,30]
[314598501,1708441846097,-500.0,0.00046575,30]
[314598502,1708441846107,-500.0,0.00046575,30]
[314598503,1708441846117,-500.0,0.00046575,30]
[314598504,1708441846127,-500.0,0.00046575,30]
[314598505,1708441846136,-548.82,0.00046575,30]
[314598506,1708441846146,-500.0,0.00046575,30]
[314598507,1708441846156,-500.0,0.00046575,30]
[314598508,1708441846165,-500.0,0.00046575,30]
[314598509,1708441846175,-500.0,0.00046575,30]
[314598510,1708441846185,-174.66902179,0.00046575,30]
[314598511,1708441846206,-291.10989104,0.00046575,30]
[314598534,1708442802144,-184.66827974,0.00036698,4]
[314598573,1708443032621,-245.77557982,0.00027524,2]
[314598574,1708443032631,-260.001,0.000364,2]
[314598575,1708443032646,-11.96879424,0.0003669,4]
[314598576,1708443032658,-324.59627546,0.0003669,4]
[314598577,1708443032668,-189.5011064,0.00036691,2]
[314598578,1708443032683,-299.39689032,0.00036691,2]
[314598579,1708443032696,-68.59617726,0.00036691,2]
[314598580,1708443032706,-420.69617329,0.00036698,4]
[314598581,1708443032735,-1017.50887766,0.00036698,4]
[314598582,1708443032846,-978.38243839,0.00036698,4]
[314598583,1708443032858,-4116.02652704,0.00036698,4]
[314598584,1708443032908,-17.54945982,0.00036698,4]
[314598585,1708443032918,-556.59828451,0.000367,2]
[314598586,1708443032927,-150.0,0.000367,2]
[314598587,1708443032937,-150.0,0.000389,2]
[314598588,1708443032946,-150.0,0.000389,2]
[314598589,1708443032956,-482.54201391,0.00039199,4]
[314598590,1708443032966,-400.0,0.00039199,5]
[314598591,1708443032976,-1125.9655,0.000392,2]
[314598592,1708443032987,-500.0,0.000392,2]
[314598593,1708443032997,-997.98,0.000392,2]
[314598595,1708443033007,-156.386792,0.00039273,2]
[314598597,1708443033017,-491.01334976,0.00039273,2]
[314598599,1708443033031,-8.97665024,0.00039273,2]
[314598601,1708443033045,-554.31879801,0.00039299,4]
[314598604,1708443033066,-442.48264213,0.00039299,4]
[314598606,1708443033076,-152.88,0.000398,3]
[314598610,1708443033086,-152.88,0.000398,3]
[314598613,1708443033096,-25.89588548,0.000398,3]
[314598617,1708443033108,-126.98411452,0.000398,3]
[314598620,1708443033119,-152.88,0.000398,3]
[314598623,1708443033130,-135.35890584,0.000398,3]
[314598626,1708443033147,-17.52109416,0.000398,3]
[314598630,1708443033157,-152.88,0.000398,3]
[314598634,1708443033167,-152.88,0.000398,3]
[314598638,1708443033181,-152.88,0.000398,3]
[314598642,1708443033192,-152.88,0.000398,3]
[314598646,1708443033202,-152.88,0.000398,3]
[314598650,1708443033211,-930.65153301,0.00039877,16]
[314598654,1708443033225,-1538.5751381,0.00039877,16]
[314598657,1708443033239,-1292.0,0.00039877,16]
[314598661,1708443033251,-1118.52778385,0.00039877,16]
[314598664,1708443033262,-8654.38890135,0.0003989,16]
[314598667,1708443033272,-4421.55141376,0.0003989,11]
[314598670,1708443033282,-442.66760272,0.0003989,8]
[314598673,1708443033292,-1506.73367965,0.0004,2]
[314598676,1708443033302,-271.65,0.00040426,2]
[314598678,1708443033312,-741.91687963,0.00040661,120]
[314598680,1708443033323,-1000.0,0.00041461,2]
[314598682,1708443033333,-178.6,0.00041529,2]
[314598684,1708443033342,-173.5,0.00041535,2]
[314598686,1708443033352,-2000.0,0.00041586,120]
[314598688,1708443033363,-217.36037967,0.00041847,5]
[314598843,1708443041073,-3454.35438775,0.0003989,16]
[314598844,1708443041135,-1197.45091,0.0003989,16]
[314598845,1708443041153,-297.99999998,0.0003989,16]
[314598846,1708443041180,-736.15188701,0.0003989,16]
[314598847,1708443041192,-342.63962033,0.00041847,5]
[314598848,1708443041202,-1038.7,0.00041895,2]
[314598849,1708443041212,-63.47106706,0.0004194,2]
[314598850,1708443041224,-186.52893294,0.0004194,2]
[314598851,1708443041234,-2902.50209157,0.00041997,2]
[314598852,1708443041248,-4324.21696439,0.00041997,2]
[314598853,1708443041268,-194.65094404,0.00041997,2]
[314598854,1708443041278,-67.03212487,0.00042031,2]
[314598855,1708443041291,-172.93787513,0.00042031,2]
[314598856,1708443041302,-152.88,0.000422,4]
[314598857,1708443041313,-152.88,0.000422,4]
[314598858,1708443041323,-152.88,0.000422,4]
[314598859,1708443041335,-152.88,0.000422,4]
[314598860,1708443041345,-140.44013848,0.000422,4]
[314598861,1708443041359,-12.43986152,0.000422,4]
[314598862,1708443041369,-152.88,0.000422,4]
[314598863,1708443041379,-152.88,0.000422,4]
[314598864,1708443041393,-152.88,0.000422,4]
[314598865,1708443041406,-152.88,0.000422,4]
[314598866,1708443041416,-152.88,0.000422,4]
[314598867,1708443041425,-505.21142034,0.0004229,2]
[314598868,1708443041437,-455.20087013,0.0004229,2]
[314598869,1708443041448,-473.5649975,0.0004229,2]
[314598870,1708443041470,-589.55763454,0.0004229,2]
[314598871,1708443041482,-25.81671107,0.0004229,2]
[314598872,1708443041491,-307.03703934,0.000423,3]
[314598873,1708443041504,-663.40607679,0.000423,3]
[314598874,1708443041516,-9585.55688387,0.000423,3]
[314598875,1708443041525,-194.97370398,0.00042317,4]
[314598876,1708443041535,-33.35891267,0.0004237,15]
[314598877,1708443041547,-260.97108733,0.0004237,15]
[314598878,1708443041557,-250.0,0.00042528,2]
[314598879,1708443041567,-50.95469304,0.00042619,2]
[314598880,1708443041582,-100.90530696,0.00042619,2]
[314598881,1708443041591,-271.65,0.0004269,2]
[314598883,1708443041602,-207.97098564,0.00042794,2]
[314598885,1708443041613,-53.80901436,0.00042794,2]
[314598886,1708443041624,-395.1464768,0.00042899,6]
[314598887,1708443041633,-1027.44525515,0.00042899,7]
[314598888,1708443041651,-787.9018327,0.00042899,7]
[314598889,1708443041660,-153.63735541,0.00042899,7]
[314598890,1708443041673,-825.88194631,0.00042899,7]
[314598891,1708443041682,-150.6867808,0.00042899,6]
[314598892,1708443041692,-150.68678079,0.00042899,7]
[314598893,1708443041701,-233.05383535,0.00042899,7]
[314598894,1708443041710,-172.56868307,0.00042899,7]
[314598895,1708443041719,-493.42,0.00042965,2]
[314598896,1708443041729,-80.51957296,0.00043081,2]
[314598897,1708443041740,-84.32042704,0.00043081,2]
[314598898,1708443041750,-173.5,0.00043179,2]
[314598899,1708443041759,-176.54,0.00043417,2]
[314598900,1708443041769,-176.54,0.00043646,2]
[314598901,1708443041778,-208.0,0.00043821,10]
[314598902,1708443041788,-1302.76127593,0.00043859,5]
[314598903,1708443041798,-176.54,0.00043874,2]
[314598904,1708443041808,-176.54,0.00044103,2]
[314598905,1708443041818,-877.708,0.00044131,2]
[314598906,1708443041828,-150.0,0.00044206,30]
[314598907,1708443041837,-1256.0,0.00044248,2]
[314598908,1708443041846,-1231.0,0.00044248,2]
[314598909,1708443041855,-2886.0,0.00044248,2]
[314598910,1708443041865,-176.54,0.00044331,2]
[314598911,1708443041875,-439.77,0.0004438,2]
[314598912,1708443041884,-819.16301513,0.000444,2]
[314598913,1708443041907,-180.83698487,0.000444,2]
[314598914,1708443041917,-503.15100738,0.000444,2]
[314598915,1708443041929,-2000.0,0.000444,2]
[314598916,1708443041938,-2000.0,0.000444,2]
[314598917,1708443041948,-250.67307284,0.000444,2]
[314598918,1708443041957,-217.58603491,0.00044467,10]
[314598920,1708443042257,-83.56396509,0.00044467,10]
[314598921,1708443042269,-14716.10410231,0.00044477,30]
[314598922,1708443042295,-40204.89589769,0.00044477,30]
[314598923,1708443042307,-1302.76127592,0.0004453,6]
[314598924,1708443042318,-176.54,0.0004456,2]
[314598925,1708443042331,-152.88,0.000446,5]
[314598926,1708443042342,-152.88,0.000446,5]
[314598927,1708443042352,-152.88,0.000446,5]
[314598928,1708443042363,-152.88,0.000446,5]
[314598929,1708443042375,-152.88,0.000446,5]
[314598930,1708443042386,-152.88,0.000446,5]
[314598931,1708443042397,-152.88,0.000446,5]
[314598932,1708443042407,-152.88,0.000446,5]
[314598933,1708443042418,-152.88,0.000446,5]
[314598934,1708443042429,-152.88,0.000446,5]
[314598935,1708443042440,-783.0,0.00044674,5]
[314598938,1708443042450,-244.93467264,0.00044681,120]
[314598944,1708443042514,-868.18532736,0.00044681,120]
[314598946,1708443042524,-176.54,0.00044788,2]
[314598949,1708443042535,-173.5,0.00044822,2]
[314598951,1708443042545,-271.65,0.00044954,2]
[314598953,1708443042555,-327.08679204,0.00045,4]
[314598955,1708443042565,-168.0,0.00045,90]
[314598957,1708443042574,-165.0,0.00045,90]
[314598959,1708443042585,-176.54,0.00045017,2]
[314598961,1708443042594,-1302.76127592,0.00045201,7]
[314598962,1708443042604,-176.54,0.00045245,2]
[314598964,1708443042614,-176.54,0.00045474,2]
[314598967,1708443042625,-729.4793,0.00045485,2]
[314598969,1708443042636,-1408.5916966,0.00045578,2]
[314598970,1708443042658,-208.0,0.00045619,10]
[314598973,1708443042668,-1122.0,0.00045643,10]
[314598974,1708443042679,-1204.29618484,0.00045644,10]